Cogmind - Beta 11.1 @@@ ROGUE MODE // 2022.07.27 @ 21:20:15 Player: tkc Result: Destroyed by 8R-AWN with 8R-AWN's Boregun Performance ------------- Evolutions (1) 500 Regions Visited (5) 1000 Robots Destroyed (73) 365 Value Destroyed (1565) 1565 Prototype IDs (2) 40 Alien Tech Used (0) 0 Bonus (543) 543 TOTAL SCORE: 4013 Bonus ------- High Alert Combat Kills 367 Follower Combat Kills 197 Friendly Fire -21 Cogmind --------- Core Integrity 0/400 Matter 162/300 Energy 100/100 System Corruption 2% Temperature Cool (0) Movement Core (700) Ox13 Location -9/Exiles Parts ------- > --- POWER (1) -------- (None) > --- PROPULSION (2) --- (None) > --- UTILITY (4) ------ High-capacity Storage Unit Improved Terrain Scanner Terrain Scan Processor > --- WEAPON (2) ------- (None) > --- INVENTORY (20) --- Improved Ion Engine Heavy Ion Engine Reinforced Deuterium Engine Large Storage Unit High-capacity Matter Pod (200) Propulsion Shielding Utility Shielding Hacking Suite Shotgun Shotgun Improved Light Cannon Improved Light Cannon Mini Grenade Launcher Mini Grenade Launcher Mini Grenade Launcher Signal Generator Peak State ------------ > --- POWER ------------ Heavy Ion Engine > --- PROPULSION ------- Light Treads Compact Wheel > --- UTILITY ---------- High-capacity Storage Unit Improved Terrain Scanner Terrain Scan Processor Hardened Light Armor Plating > --- WEAPON ----------- Beamcaster Mini Grenade Launcher > --- INVENTORY -------- Improved Ion Engine Heavy Ion Engine Light Treads Light Treads Light Treads Wheel Large Storage Unit High-capacity Matter Pod Propulsion Shielding Shotgun Shotgun Light Cannon Improved Light Cannon Improved Light Cannon Improved Light Cannon Improved Light Cannon Mini Grenade Launcher Mini Grenade Launcher Mini Grenade Launcher Signal Generator [Rating: 23] Favorites ----------- Power Light Ion Engine Engine Light Ion Engine Propulsion Compact Wheel Treads Light Treads Leg Improved Aluminum Leg Wheel Compact Wheel Utility High-capacity Storage Unit Device Improved Terrain Scanner Storage High-capacity Storage Unit Processor Terrain Scan Processor Protection Medium Armor Plating Weapon Improved Light Cannon Energy Gun Beamcaster Ballistic Gun Light Assault Rifle Ballistic Cannon Improved Light Cannon Launcher Mini Grenade Launcher Special Weapon Mining Laser Build | -11 -10 -10 -9 -9 -9 ------- Run | Scr Mat Min Mat Min Exi Slots Evolved 2 | . . . 2 . . Power . | . . . . . . Propulsion . | . . . . . . Utility 2 | . . . 2 . . Weapon . | . . . . . . Parts Attached 79 | 9 25 7 30 2 6 Power 7 | 2 1 1 3 . . Engine 7 | 2 1 1 3 . . Core . | . . . . . . Reactor . | . . . . . . Propulsion 23 | 2 6 1 8 . 6 Treads 9 | . 2 1 3 . 3 Leg 2 | . 2 . . . . Wheel 12 | 2 2 . 5 . 3 Hover . | . . . . . . Flight . | . . . . . . Utility 19 | 2 4 5 8 . . Device 2 | 1 . . 1 . . Storage 4 | 1 2 . 1 . . Processor 2 | . 1 . 1 . . Hackware . | . . . . . . Protection 11 | . 1 5 5 . . Artifact . | . . . . . . Weapon 30 | 3 14 . 11 2 . Energy Gun 4 | 1 1 . 2 . . Energy Cannon . | . . . . . . Ballistic Gun 6 | 2 4 . . . . Ballistic Cannon 11 | . 5 . 5 1 . Launcher 5 | . . . 4 1 . Special Weapon 4 | . 4 . . . . Impact Weapon . | . . . . . . Slashing Weapon . | . . . . . . Piercing Weapon . | . . . . . . Special Melee Weapon . | . . . . . . Unidentified Prototypes 1 | . . . 1 . . Parts Lost 21 | . 4 . 6 1 10 Power 3 | . 1 . 1 . 1 Propulsion 9 | . 1 . 2 . 6 Utility 5 | . 1 . 3 . 1 Weapon 4 | . 1 . . 1 2 Highest Loss Streak 4 | . 3 . 1 1 4 To Critical Strikes 4 | . . . . . 4 Average Slot Usage (%) 97 | . 99 100 97 99 73 Engine 12 | . 13 14 11 11 4 Treads 10 | . 9 14 9 11 10 Leg 1 | . 3 . . . . Wheel 13 | . 14 14 12 11 6 Device 3 | . 3 . 4 11 11 Storage 12 | . 14 14 11 11 11 Processor 3 | . 3 . 4 11 11 Protection 13 | . 6 13 21 11 4 Energy Gun 3 | . . . 8 1 . Ballistic Gun 2 | . 8 . . . . Ballistic Cannon 15 | . 13 28 11 9 6 Launcher 1 | . . . 2 10 6 Special Weapon 1 | . 5 . . . . Naked Turns . | . . . . . . Heaviest Build 78 | 14 65 62 78 62 58 Greatest Support 40 | 26 26 20 32 16 40 Greatest Overweight (x) 13 | . 4 3 4 3 13 Average Overweight (x) 2 | . 2 2 3 3 2 Largest Inventory Capacity 20 | 8 20 20 20 20 20 Average Capacity 19 | 7 19 20 20 20 20 Most Carried 20 | 8 20 20 20 20 20 Average Carried 18 | 4 15 19 19 19 18 Final Capacity 20 | 8 20 20 20 20 20 Final Carried 20 | 8 20 20 20 20 16 Class Distribution -------------------- 83% | Mutant 16% | Scavenger-Mutant Dominant Class ---------------- Mutant | -10/Materials Mutant | -10/Mines Mutant | -9/Materials Mutant | -9/Mines Mutant | -9/Exiles Resources | -11 -10 -10 -9 -9 -9 ----------- Run | Scr Mat Min Mat Min Exi Matter Collected 1877 | 322 273 342 860 80 . Remotely . | . . . . . . Salvage Created 1834 | 189 291 129 1165 53 7 Parts 131 | 12 23 5 86 5 . Haulers Intercepted 3 | . 1 . 2 . . Recyclers Shooed 3 | . 3 . . . . Parts Field Recycled . | . . . . . . Retrieved Matter . | . . . . . . Parts Self-Destructed . | . . . . . . Prevented . | . . . . . . Kills | -11 -10 -10 -9 -9 -9 ------- Run | Scr Mat Min Mat Min Exi Combat Hostiles Destroyed 61 | . 8 2 38 6 7 Guns 15 | . 8 . 7 . . Cannons 9 | . . 2 7 . . AOE 37 | . . . 24 6 7 Classes Destroyed 11 | 2 5 . 3 . 1 Builder 2 | . 2 . . . . Tunneler 6 | 4 . 1 1 . . Hauler 3 | . 1 . 2 . . Recycler 3 | 1 . 1 1 . . Mechanic 1 | . . . 1 . . Operator 4 | . 2 . 2 . . Swarmer 26 | . 6 . 16 4 . Grunt 19 | . 2 2 13 2 . Brawler 2 | . . . 2 . . Sentry 7 | . . . 7 . . Assembled 7 | . . . . . 7 Best Kill Streak 13 | 5 5 2 13 6 7 Combat Bots Only 12 | . 5 1 12 6 7 Max Kills in Single Turn 7 | 1 1 1 7 2 2 Gunslinging . | . . . . . . Exploded 6 | . . . 6 2 2 Melee . | . . . . . . Uniques/NPCs Destroyed . | . . . . . . Combat | -11 -10 -10 -9 -9 -9 -------- Run | Scr Mat Min Mat Min Exi Damage Taken 3128 | . 481 258 1113 99 1177 Core 560 | . 98 50 140 34 238 Absorbed by Shields . | . . . . . . Redirected to Shielding 26 | . . . 26 . . Core Remaining (%) 70 | 100 . 40 . . . Volleys Fired 194 | 8 93 12 65 6 10 Largest 2 | 2 2 2 2 2 1 Hottest 120 | 40 120 78 114 105 30 Shots Fired 296 | 16 140 24 97 8 11 Gun 142 | 16 88 . 36 2 . Cannon 94 | . 27 24 43 . . Launcher 35 | . . . 18 6 11 Special 25 | . 25 . . . . Kinetic 196 | 16 113 24 43 . . Thermal 65 | . 27 . 36 2 . Explosive 35 | . . . 18 6 11 Electromagnetic . | . . . . . . Robot Hit Streak 13 | 6 13 6 7 2 1 Robot Miss Streak 5 | 1 5 2 3 . 1 Penetration Max . | . . . . . . Secondary Targets 2 | . 2 . . . . Max Gunslinging Chain 1 | . 1 . . . . Shots Hit Robots 148 | 10 68 17 51 1 1 Core Hits 120 | 6 26 4 54 10 20 Critical Kills . | . . . . . . Critical Parts Destroyed . | . . . . . . Critical Strikes 7 | . . . 7 . . Burn 3 | . . . 3 . . Blast 4 | . . . 4 . . Melee Attacks . | . . . . . . Impact . | . . . . . . Slashing . | . . . . . . Piercing . | . . . . . . Sneak Attacks . | . . . . . . Combat Hostiles . | . . . . . . Follow-up Attacks . | . . . . . . Damage Inflicted 4668 | 105 702 350 2557 440 514 Guns 1116 | 105 486 . 525 . . Cannons 1034 | . 192 350 492 . . Explosions 2491 | . . . 1537 440 514 Melee . | . . . . . . Ramming 3 | . . . 3 . . Kinetic 1601 | 105 654 350 492 . . Thermal 627 | . 48 . 579 . . Explosive 2437 | . . . 1483 440 514 Electromagnetic . | . . . . . . Impact . | . . . . . . Slashing . | . . . . . . Piercing . | . . . . . . Highest Corruption 2 | . 2 2 2 2 2 Average Corruption 2 | . 2 2 2 2 2 Corruption Purged . | . . . . . . Corruption Blocked . | . . . . . . Effects 46 | . 9 11 19 4 3 Message Errors 14 | . 2 2 8 2 . Matter Fused 12 | . 2 5 3 1 1 Heat Flow Errors 2 | . . . 1 . 1 Energy Discharges 6 | . 1 2 2 1 . Data Loss (minor) 6 | . 1 2 3 . . Data Loss (major) 2 | . 1 . 1 . . Misfires 3 | . 1 . 1 . 1 Weapon Failures 1 | . 1 . . . . Overload Shots . | . . . . . . Overflow Damage 134 | . 31 28 62 3 10 Projectiles 59 | . 31 28 . . . Explosions 75 | . . . 62 3 10 Melee . | . . . . . . Knockbacks 7 | . 3 1 3 . . Impact . | . . . . . . Kinetic 6 | . 2 1 3 . . Secondary 1 | . 1 . . . . Self-Inflicted Damage 159 | . . . 145 14 . Shots 7 | . . . 6 1 . Rammed 1 | . . . 1 . . Targets Rammed 1 | . . . 1 . . Kicked . | . . . . . . Crushed . | . . . . . . Highest Temperature 402 | . 160 402 248 108 87 Average Temperature 65 | . 37 168 65 36 24 Received Heat Transfer 576 | . 144 159 246 27 . Effects 4 | . . 4 . . . Energy Bleed 4 | . . 4 . . . Siege Activations . | . . . . . . Robots Corrupted . | . . . . . . Combat Hostiles . | . . . . . . Parts Fried . | . . . . . . Impact Corruptions . | . . . . . . Robots Melted . | . . . . . . Combat Hostiles . | . . . . . . Parts Melted 1 | . . . 1 . . Heat Transferred 1260 | . 100 . 1160 . . Parts Sabotaged . | . . . . . . Parts Stolen . | . . . . . . Parts Stripped . | . . . . . . Power Chain Reactions . | . . . . . . Missiles Intercepted . | . . . . . . Alert | -11 -10 -10 -9 -9 -9 ------- Run | Scr Mat Min Mat Min Exi Peak Influence 1230 | 25 256 134 1230 621 . Initial 413 | . 16 26 . 413 . Average 270 | 8 64 20 549 597 . Maximum Alert Level 4 | . 1 . 4 2 . Low Security (%) 61 | 100 95 100 17 . . Level 1 9 | . 4 . 20 . . Level 2 17 | . . . 30 100 . Level 3 6 | . . . 17 . . Level 4 5 | . . . 13 . . Level 5 . | . . . . . . High Security . | . . . . . . Max Security . | . . . . . . Squads Dispatched 8 | . . 1 7 . . Investigation 1 | . . . 1 . . Extermination . | . . . . . . Reinforcement 5 | . . . 5 . . Assault 2 | . . 1 1 . . Garrison . | . . . . . . Intercept . | . . . . . . Searches Triggered . | . . . . . . Construction Impeded 1 | . . . 1 . . Haulers Reinforced . | . . . . . . Active Scanning Responses . | . . . . . . Cargo Convoy Interrupts . | . . . . . . Stealth | -11 -10 -10 -9 -9 -9 --------- Run | Scr Mat Min Mat Min Exi Distress Signals 4 | . . . 4 . . Communications Jammed . | . . . . . . Distress Signals . | . . . . . . Times Spotted 108 | . 25 4 65 6 8 Peak Tracking Total 9 | . 6 4 9 4 9 Tactical Retreats 1 | . 1 . . . . Traps | -11 -10 -10 -9 -9 -9 ------- Run | Scr Mat Min Mat Min Exi Traps Triggered 4 | . 2 . 2 . . Indirectly . | . . . . . . Trap Hack Attempts . | . . . . . . Triggered . | . . . . . . Disarmed . | . . . . . . Reprogrammed . | . . . . . . Reused . | . . . . . . Traps Extracted . | . . . . . . Installed . | . . . . . . Triggered . | . . . . . . Machines | -11 -10 -10 -9 -9 -9 ---------- Run | Scr Mat Min Mat Min Exi Machines Disabled 12 | . 4 . 5 . 3 Max in Single Turn 2 | . 1 . 2 . 2 Machines Sabotaged . | . . . . . . Garrisons Compromised . | . . . . . . Overloaded Fab Kills . | . . . . . . Hacking | -11 -10 -10 -9 -9 -9 --------- Run | Scr Mat Min Mat Min Exi Machines Accessed 18 | . 9 . 9 . . Terminals 14 | . 8 . 6 . . Fabricators . | . . . . . . Repair Stations . | . . . . . . Recycling Units 2 | . 1 . 1 . . Scanalyzers 2 | . . . 2 . . Garrison Access . | . . . . . . Total Hacks 52 | . 25 . 27 . . Successful 22 | . 10 . 12 . . Failed 28 | . 14 . 14 . . Catastrophic 2 | . . . 2 . . Database Lockouts 2 | . 1 . 1 . . Manual 48 | . 23 . 25 . . Terminals 46 | . 23 . 23 . . Fabricators . | . . . . . . Repair Stations . | . . . . . . Recycling Units 3 | . 2 . 1 . . Scanalyzers 3 | . . . 3 . . Garrison Access . | . . . . . . Terminal Hacks 8 | . 3 . 5 . . Robot Analysis 2 | . 1 . 1 . . Branch Access Points 2 | . . . 2 . . Terminal Index 1 | . 1 . . . . Unreport Threat 1 | . . . 1 . . Zone Layout 2 | . 1 . 1 . . Fabricator Hacks . | . . . . . . Repair Station Hacks . | . . . . . . Recycling Unit Hacks 1 | . . . 1 . . Retrieve Components 1 | . . . 1 . . Scanalyzer 3 | . . . 3 . . Insert Component 3 | . . . 3 . . Garrison Access Hacks . | . . . . . . Unauthorized Hacks 10 | . 7 . 3 . . Terminals 10 | . 7 . 3 . . Assimilate 2 | . 2 . . . . Botnet 7 | . 4 . 3 . . Operators 1 | . 1 . . . . Fabricators . | . . . . . . Repair Stations . | . . . . . . Recycling Units . | . . . . . . Scanalyzers . | . . . . . . Garrison Access . | . . . . . . Data Cores Recovered . | . . . . . . Used . | . . . . . . Hacking Detections 17 | . 9 . 8 . . Full Trace Events 1 | . 1 . . . . Feedback Events . | . . . . . . Feedback Blocked . | . . . . . . Robot Schematics Acquired . | . . . . . . Robots Built . | . . . . . . Authchips . | . . . . . . Time . | . . . . . . Total Robot Build Rating . | . . . . . . Part Schematics Acquired . | . . . . . . Parts Built . | . . . . . . Authchips . | . . . . . . Time . | . . . . . . Total Part Build Rating . | . . . . . . Parts Repaired . | . . . . . . Time . | . . . . . . Parts Recycled . | . . . . . . Recycled Matter . | . . . . . . Retrieved Matter . | . . . . . . Retrieved Components 10 | . . . 10 . . Parts Scanalyzed . | . . . . . . Part Schematics Acquired . | . . . . . . Parts Damaged . | . . . . . . Bothacking | -11 -10 -10 -9 -9 -9 ------------ Run | Scr Mat Min Mat Min Exi Used RIF Installer . | . . . . . . Robots Hacked . | . . . . . . Non-combat . | . . . . . . Combat . | . . . . . . Robot Hacks Applied . | . . . . . . Relay Couplers Released . | . . . . . . Fabnet Peak Effective % . | . . . . . . Robots Rewired . | . . . . . . Allies Hacked . | . . . . . . Hacks Repelled . | . . . . . . Allies | -11 -10 -10 -9 -9 -9 -------- Run | Scr Mat Min Mat Min Exi Total Allies 2 | . 1 1 . . . Largest Group 2 | . 1 2 2 . . Highest-Rated Group 41 | . 10 41 41 . . Highest-Rated Ally 31 | . 10 31 31 . . Total Orders 2 | . 2 . . . . STAY 1 | . 1 . . . . FOLLOW 1 | . 1 . . . . Ally Attacks 49 | . . 12 37 . . Total Damage 570 | . . 168 402 . . Kills 12 | . . 2 10 . . Allies Corrupted . | . . . . . . Allies Melted . | . . . . . . Intel | -11 -10 -10 -9 -9 -9 ------- Run | Scr Mat Min Mat Min Exi Robot Analysis Total 2 | . 1 . 1 . . Derelict Logs Recovered 2 | . . 1 . 1 . Drone Launches . | . . . . . . Drone Recoveries . | . . . . . . Exploration | -11 -10 -10 -9 -9 -9 ------------- Run | Scr Mat Min Mat Min Exi Turns Passed 4961 | 84 1562 981 1804 260 270 Spaces Moved 2622 | 44 768 531 971 168 140 Core 2 | 1 . . . . 1 Treads 48 | . 1 6 6 . 35 Legs 45 | . 45 . . . . Wheels 2527 | 43 722 525 965 168 104 Hover . | . . . . . . Flight . | . . . . . . Fastest Speed 50 | 50 90 145 115 145 115 Average Speed 146 | 91 140 147 149 145 173 Slowest Speed 700 | 100 320 400 400 145 700 Overloaded Moves . | . . . . . . Propulsion Burnouts . | . . . . . . Robots Hopped . | . . . . . . Cave-ins Triggered . | . . . . . . Exploration Rate (%) 58 | 3 85 99 87 39 36 Regions Visited 5 Branch Regions 3 Pre-discovered Areas 1 | . . . . 1 . Known Exits Taken 3 | . 1 1 1 . . Unknown Exits Taken 2 | 1 . . . 1 . Scrap Searched 2 | . . 1 . 1 . Spaces Dug 23 | . 23 . . . . Terrain Destroyed 226 | . 27 1 132 48 18 Melee . | . . . . . . Projectile 32 | . 27 1 4 . . AOE 194 | . . . 128 48 18 Terrain Rammed . | . . . . . . Walls Destroyed . | . . . . . . Machines Disabled . | . . . . . . Actions | -11 -10 -10 -9 -9 -9 --------- Run | Scr Mat Min Mat Min Exi Total 3413 | 69 1074 705 1231 176 158 Wait 430 | . 151 148 131 . . Move 2617 | 43 767 530 970 167 140 Hop . | . . . . . . Pick Up 53 | 8 25 3 15 1 1 Fast Attach 17 | 8 3 . 6 . . Attach 17 | . 5 1 6 1 4 Detach 3 | . 1 1 1 . . Swap 45 | 1 17 6 18 1 2 Drop 36 | 1 12 4 18 . 1 Fire 194 | 8 93 12 65 6 10 Melee . | . . . . . . Ram 1 | . . . 1 . . Kick . | . . . . . . Crush . | . . . . . . Escape Stasis . | . . . . . . Rewire . | . . . . . . Trap . | . . . . . . Miscellaneous . | . . . . . . Route ------- -11/Scrapyard -10/Materials (discovered 3 exits: *Mat x2 / *Min) -10/Mines (discovered 2 exits: *Mat x2) -9/Materials (discovered 3 exits: [*Mat x2] / *Min) -9/Mines -9/Exiles History --------- Turn | Location | Event 15 | -11/Scrapyard | Discovered new exit (range 16) 85 | -11/Scrapyard | Entered Materials 302 | -10/Materials | Build established: Mutant 467 | -10/Materials | Lost 3 parts (1p1n1u) 716 | -10/Materials | Discovered new exit (range 16) 817 | -10/Materials | Discovered new exit (range 6) 897 | -10/Materials | Central database locked down 1199 | -10/Materials | Discovered new exit (range 7) 1268 | -10/Materials | Identified exit to Materials 1645 | -10/Materials | Identified exit to Mines 1647 | -10/Materials | Entered Mines 1647 | -10/Mines | Accompanied by 1 ally 1667 | -10/Mines | Discovered exit to Materials (range 10) 1833 | -10/Mines | YI-UF0 nonchalantly dropped a Grenade Launcher on the ground 1921 | -10/Mines | Discovered exit to Materials (range 9) 1925 | -10/Mines | Met a Derelict testing a Signal Generator 1935 | -10/Mines | Found Signal Generator 1980 | -10/Mines | Core integrity fell below 50% 2119 | -10/Mines | Joined a pair of Derelicts in attacking an 0b10 outpost 2140 | -10/Mines | Learned Materials emergency access door positions 2628 | -10/Mines | Entered Materials 2628 | -9/Materials | Accompanied by 2 allies 2628 | -9/Materials | Evolved 2 slots: Utility x2 3007 | -9/Materials | Identified exit to Mines 3123 | -9/Materials | Discovered new exit (range 5) 3620 | -9/Materials | Discovered new exit (range 3) 3828 | -9/Materials | First assault squad dispatched 3908 | -9/Materials | Destroyed 12 combat bots 3957 | -9/Materials | Build established: Scavenger-Mutant 4269 | -9/Materials | Central database locked down 4432 | -9/Materials | Entered Mines 4482 | -9/Mines | Assembled infested the area 4487 | -9/Mines | Assisted by a Guerilla fighting off Assembled 4618 | -9/Mines | Learned location of Zion (-6) 4686 | -9/Mines | Deemed a non-threat by the Exiles lab entrance 4686 | -9/Mines | Discovered new exit (range 5) 4692 | -9/Mines | Entered Exiles 4730 | -9/Exiles | Met 8R-AWN 4753 | -9/Exiles | Met EX-HEX 4773 | -9/Exiles | Attacked by the Exiles 4778 | -9/Exiles | Core integrity fell below 50% 4779 | -9/Exiles | Build established: Mutant 4807 | -9/Exiles | Destroyed 7 combat bots 4849 | -9/Exiles | Lost 4 parts (1p2n1u) 4893 | -9/Exiles | Lost 3 parts (1n2w) 4929 | -9/Exiles | Core integrity fell below 20% 4962 | -9/Exiles | Destroyed by 8R-AWN with 8R-AWN's Boregun Last Messages --------------- 04867_ HV Slug penetrates Wall. 04871_ Penetrated by HV Slug. 04871_ HV Slug penetrates Machine. 04878_ Penetrated by HV Slug. 04882_ HV Slug penetrates Wall. 04890_ Penetrated by HV Slug. 04914_ The unstable cave ceiling collapses. 04914_ HV Slug penetrates Earth. 04919_ Penetrated by HV Slug. 04923_ Critical hit (Destroy). 04923_ Lgt. Treads destroyed. 04923_ Penetrated by HV Slug. 04928_ Lgt. Treads destroyed. 04928_ Penetrated by HV Slug. 04934_ HV Slug penetrates Earth. 04938_ Penetrated by HV Slug. 04962_ Critical hit (Destroy). 04962_ Lgt. Treads destroyed. 04962_ HV Slug penetrates Wall. 04962_ Penetrated by HV Slug. Map ----- +----------------------------------------------------+ | """#??????#??????????????????????????????????????? | | """#??#??????????????????????????????????????????? | | """#?????#???????????????????????????????????????? | | """#?????????????????????????????????????????????? | | """##?"??????????????????????????????????????????? | | """"?? ??????????????????????????????????????????? | | """#?#?#?????????????????????????????????????????? | | """"" #?#??????????????????????????????????????? | | #?"""?????????????????????????????????????????? | | """#?""?#?#??#???????????????????????????????????? | | #### "??##???#???????????#?#???##??????#?????????? | | ###?##?#??####?????????#???##????????????????????? | | ###?#??######???##?#????????##?#?####?#???#??????? | | ??#?###????###?#?##?###??#????#??##??#??????#????? | | #############??#####?#?##??#????#?#???#??????? ? | | """""""""##?######?#####???##???##????#?#????# | | " """ """######???###?#??#?????#??##????????# # | | " " ###?#?######???#?##?#????#???????# # | | """##?###?####????#??###?#?#??????## | | " "####?##?#########?#?????#?#?????# | | ##????##?##" ###?????##?##?### | | ##########" ##?????###????## #? | | #?##?####" #####?#?#?????# #? | | ######## ####?##?#?#### #?? | | ## ;######### #?? | | ### @ #""""## #??? | | # ] #### | | g ## * ##? | | #### ##? | | ""#?#"""""#### ## | | """##########?##### * | | #####?#??###??##???##### | | ##???#?#?#??#?##?##???#?### | | #########?#???#####??#?#????### | | " ""#??#######?##?#??#???##??#?#?#### | | "" "###?##?#?##?###??????#?#?##?????#" | | """# " " """#########?#?##?????###???####?#??#### | | """############???#?#???##?#######?##???????????## | | ###??##?###??####?#??#?#?#?#??#?##???##??#?##??#?# | | ???#?##??##???#?#?????##??##?#???#?????#?????#???? | | #?????#?#?????????##??#?#??????#???##????#???#???? | | ??????#??#??????####??##?????#??????????#???##???? | | ?????????#????#???#????#??????????????#???????#??# | | ??????????????#???#?????????????????###??????????? | | ?????????????????#?#????????????????#???#?##??#??? | | ????????????#?????????????????????????????#??#??#? | | ??????????????????????????????????????????#?#????? | | ????????????????????????????????????????#????#??#? | | ????????????????????????????????????????????????#? | | ?????????????????????????????????????????????????? | +----------------------------------------------------+ Best States ------------- Heat Dissipation 28 Energy Generation 14 Energy Capacity 280 Matter Stores 300 Matter Capacity 300 Sight Range 16 Terrain Scan Range 16 Terrain Scan Density 85 Armor Coverage 450 Core Shielding 20 Propulsion Shielding 33 Evasion (%) 42 Recoil Reduction 2 Item Schematics ----------------- None Robot Schematics ------------------ None Fabricated ------------ Nothing Alien Tech Used ----------------- None Achievements -------------- None Challenges ------------ None Game ------ Seed BlastBackupReactor Manual? 0 Play Time 01:21:18 Cumulative 103.2 hours Start 2022.07.27 @ 06:22:57 End 2022.07.27 @ 21:20:15 Sessions 6 Manual Loads 0 Difficulty Rogue Special Mode None Game No. 65 Rogue 64 Adventurer 0 Explorer 1 Win Type - Total 0 Types 0/0/0/0/0/0/0/0/0 Lore% 25 Gallery% 37 Achievement% 29 Wizard Run 0 Options --------- ASCII 0 Keyboard 0 Movement Mouse Keybinds 0 Fullscreen 1 Font 36/TerminusBold Map View 76x50 Tactical HUD 1 Map Filters NONE Filters NONE Steam 1 RUN: 85f1d784-2428-4151-a788-002cf56a60d4